Cogmind - Beta 17 @@@ ROGUE MODE // 2026.08.19 @ 15:55:23 Player: TheSkyeDoctor Result: Destroyed by S-10 Pest with Light Assault Rifle Performance ------------- Evolutions (1) 500 Regions Visited (5) 1000 Robots Destroyed (49) 245 Value Destroyed (2010) 2010 Prototype IDs (2) 40 Alien Tech Used (0) 0 Bonus (331) 331 TOTAL SCORE: 4126 Bonus ------- High Alert Combat Kills 131 Entered Garrisons 200 Cogmind --------- Core Integrity 0/400 Matter 284/300 Energy 265/265 System Corruption 5% Temperature Cool (0) Movement Treading (160) Location -9/Garrison Parts ------- > --- POWER (1) -------- Improved Ion Engine > --- PROPULSION (3) --- Light Treads Light Treads Light Treads > --- UTILITY (2) ------ Large Storage Unit Targeting Computer > --- WEAPON (3) ------- Gauss Rifle Gauss Rifle Great Maul > --- INVENTORY (15) --- Light Ion Engine Light Nuclear Core Light Treads Light Treads Light Treads Light Treads Scrap Suit High-capacity Matter Pod (200) Improved Terrain Scanner Improved Light Armor Plating Improved Light Armor Plating Heavy EM Shotgun Improved Datajack Peak State ------------ > --- POWER ------------ Ion Engine > --- PROPULSION ------- Carbon-fiber Leg Carbon-fiber Leg Carbon-fiber Leg > --- UTILITY ---------- Large Storage Unit Targeting Computer > --- WEAPON ----------- Heavy EM Shotgun Heavy Assault Rifle Gauss Rifle > --- INVENTORY -------- Light Treads Light Treads Light Treads Scrap Suit High-capacity Matter Pod Improved Terrain Scanner Light Armor Plating Assault Rifle Gauss Rifle Improved Datajack Hammer [Rating: 24] Favorites ----------- Power Improved Ion Engine Engine Improved Ion Engine Propulsion Light Treads Treads Light Treads Leg Carbon-fiber Leg Wheel Wheel Utility Large Storage Unit Device Seismic Detector Storage Large Storage Unit Processor Targeting Computer Weapon Gauss Rifle Energy Gun Improved Medium Laser Ballistic Gun Gauss Rifle Ballistic Cannon Light Cannon Impact Weapon Great Maul Build | -11 -10 -10 -9 -9 -9 ------- Run | Yrd Mat Min Mat Sto Gar Slots Evolved 2 | . . . 2 . . Power . | . . . . . . Propulsion 1 | . . . 1 . . Utility . | . . . . . . Weapon 1 | . . . 1 . . Parts Attached 33 | 7 . 1 7 . 18 Power 5 | 1 . 1 1 . 2 Engine 5 | 1 . 1 1 . 2 Core . | . . . . . . Reactor . | . . . . . . Propulsion 14 | 2 . . 2 . 10 Treads 9 | 1 . . 1 . 7 Leg 3 | . . . . . 3 Wheel 2 | 1 . . 1 . . Hover . | . . . . . . Flight . | . . . . . . Utility 4 | 2 . . 1 . 1 Device 1 | 1 . . . . . Storage 2 | 1 . . 1 . . Processor 1 | . . . . . 1 Hackware . | . . . . . . Protection . | . . . . . . Artifact . | . . . . . . Weapon 10 | 2 . . 3 . 5 Energy Gun 3 | 1 . . 2 . . Energy Cannon . | . . . . . . Ballistic Gun 4 | 1 . . . . 3 Ballistic Cannon 1 | . . . 1 . . Launcher . | . . . . . . Special Weapon . | . . . . . . Impact Weapon 2 | . . . . . 2 Slashing Weapon . | . . . . . . Piercing Weapon . | . . . . . . Special Melee Weapon . | . . . . . . Unidentified Prototypes 2 | . . . 2 . . Parts Lost 15 | . . 1 1 1 12 Power 3 | . . 1 . . 2 Propulsion 8 | . . . . 1 7 Utility 1 | . . . 1 . . Weapon 3 | . . . . . 3 Highest Loss Streak 7 | . . 1 1 1 7 To Critical Strikes 1 | . . . . . 1 Average Backups 9 | 2 5 6 5 8 10 Power 1 | . 1 . 1 1 1 Propulsion 2 | 1 2 2 1 2 2 Utility 3 | . 1 1 2 2 4 Weapon 1 | . 1 2 1 2 1 Tool/Special . | . . . . . . Unused Backups 14 | . . . . . 14 Power 2 | . . . . . 2 Propulsion 4 | . . . . . 4 Utility 7 | . . . . . 7 Weapon . | . . . . . . Tool/Special 1 | . . . . . 1 Average Slot Usage (%) 93 | . 100 97 89 80 93 Engine 11 | . 14 12 11 11 10 Treads 17 | . 14 14 11 11 18 Leg 6 | . . . . . 8 Wheel 5 | . 14 14 22 14 2 Device 1 | . 14 14 2 . . Storage 11 | . 14 14 11 11 11 Processor 6 | . . . . . 8 Energy Gun 5 | . 14 14 11 11 4 Ballistic Gun 15 | . 14 14 11 11 16 Ballistic Cannon 3 | . . . 10 11 2 Impact Weapon 7 | . . . . . 9 Peak Build Rating 24 | 7 7 8 15 14 24 Average Rating 16 | 5 7 7 11 13 19 On Entrance 8 | . 7 7 8 14 13 Avg Prop Armor Cover (%) 13 | 14 12 12 8 9 18 Naked Turns . | . . . . . . Heaviest Build 39 | 13 13 13 34 33 39 Greatest Support 60 | 20 10 10 20 20 60 Greatest Overweight (x) 11 | 1 1 1 1 3 11 Average Overweight (x) . | . 1 1 . 2 . Largest Inventory Capacity 15 | 8 8 8 15 15 15 Average Capacity 13 | 6 8 8 12 15 15 Most Carried 15 | 4 6 8 9 10 15 Average Carried 10 | 2 5 7 6 9 11 Final Capacity 15 | 8 8 8 15 15 15 Final Carried 14 | 4 6 8 9 10 14 Class Distribution -------------------- 47% | Scavenger-Mutant 31% | Mutant 10% | Gunner 10% | Scavenger-Gunner Dominant Class ---------------- Mutant | -10/Materials Mutant | -10/Mines Gunner | -9/Materials Gunner | -9/Storage Scavenger-Mutant | -9/Garrison Resources | -11 -10 -10 -9 -9 -9 ----------- Run | Yrd Mat Min Mat Sto Gar Matter Collected 1455 | 288 33 28 128 49 929 Remotely . | . . . . . . Salvage Created 1858 | 124 76 125 241 43 1249 Parts 104 | 11 3 4 5 1 80 Haulers Intercepted 1 | . . . 1 . . Recyclers Shooed 3 | 1 . . 1 1 . Parts Field Recycled . | . . . . . . Retrieved Matter . | . . . . . . Parts Self-Destructed . | . . . . . . Prevented . | . . . . . . Parts Restored . | . . . . . . Kills | -11 -10 -10 -9 -9 -9 ------- Run | Yrd Mat Min Mat Sto Gar Combat Hostiles Destroyed 42 | . 4 3 1 1 33 Guns 36 | . 4 3 . . 29 Cannons 5 | . . . 1 1 3 Classes Destroyed 8 | 2 2 . 2 . 2 Tunneler 2 | 2 . . . . . Hauler 1 | . . . 1 . . Recycler 4 | 1 . 1 2 . . Swarmer 18 | . 3 3 . . 12 Grunt 12 | . 1 . . . 11 Brawler 2 | . . . . . 2 Sentry 7 | . . . 1 1 5 Hunter 3 | . . . . . 3 Best Kill Streak 4 | 3 3 4 2 1 4 Combat Bots Only 4 | . 3 3 1 1 4 Max Kills in Single Turn 2 | 1 2 1 1 1 2 Gunslinging 1 | . 1 . . . 1 Exploded . | . . . . . . Melee . | . . . . . . Uniques/NPCs Destroyed . | . . . . . . Combat | -11 -10 -10 -9 -9 -9 -------- Run | Yrd Mat Min Mat Sto Gar Hostile Shots Fired 288 | . 17 8 8 8 247 Missed 77 | . 6 1 3 2 65 Hits 211 | . 11 7 5 6 182 Melee 4 | . . . . . 4 Projectile 207 | . 11 7 5 6 178 Critical Strikes 4 | . . . . . 4 Damage Taken 2328 | . 97 58 72 94 2007 Core 418 | . 12 . 14 47 345 Absorbed by Shields . | . . . . . . Core Remaining (%) 97 | 100 . 95 . . . Volleys Fired 125 | 6 11 7 9 8 84 Largest 3 | 2 2 2 3 3 3 Hottest 106 | 70 70 70 106 106 106 Shots Fired 272 | 12 22 14 27 24 173 Gun 233 | 12 22 14 18 16 151 Cannon 39 | . . . 9 8 22 Launcher . | . . . . . . Special . | . . . . . . Kinetic 195 | 6 11 7 18 16 137 Thermal 65 | 6 11 7 7 8 26 Explosive . | . . . . . . Electromagnetic 12 | . . . 2 . 10 Robot Hit Streak 13 | 7 8 5 4 9 13 Robot Miss Streak 5 | 1 3 1 3 3 5 Penetration Max . | . . . . . . Secondary Targets 7 | . 1 . . . 6 Max Gunslinging Chain 1 | . 1 . . . 1 Shots Hit Robots 172 | 8 11 8 15 15 115 Core Hits 66 | 4 5 6 7 3 41 Critical Kills . | . . . . . . Critical Parts Destroyed 2 | . . . . . 2 Critical Strikes 10 | . 1 1 1 1 6 Burn 8 | . 1 1 1 1 4 Destroy 1 | . . . . . 1 Smash 1 | . . . . . 1 Melee Attacks 65 | . . . . . 65 Impact 65 | . . . . . 65 Slashing . | . . . . . . Piercing . | . . . . . . Sneak Attacks . | . . . . . . Combat Hostiles . | . . . . . . Follow-up Attacks . | . . . . . . Damage Inflicted 2959 | 98 130 97 255 223 2156 Guns 2345 | 98 130 97 146 138 1736 Cannons 353 | . . . 109 85 159 Explosions . | . . . . . . Melee 261 | . . . . . 261 Ramming . | . . . . . . Kinetic 1909 | 36 45 24 173 156 1475 Thermal 598 | 62 85 73 54 67 257 Explosive . | . . . . . . Electromagnetic 191 | . . . 28 . 163 Impact 261 | . . . . . 261 Slashing . | . . . . . . Piercing . | . . . . . . Highest Corruption 5 | . . . . . 5 Average Corruption 5 | . . . . . 5 Corruption Purged . | . . . . . . Corruption Blocked . | . . . . . . Effects 43 | . . . . . 43 Message Errors 13 | . . . . . 13 Matter Fused 10 | . . . . . 10 Heat Flow Errors 7 | . . . . . 7 Energy Discharges 3 | . . . . . 3 Data Loss (minor) 4 | . . . . . 4 Data Loss (major) 2 | . . . . . 2 Misfires 1 | . . . . . 1 Weapon Failures 3 | . . . . . 3 Overload Shots . | . . . . . . Overflow Damage 60 | . . . . . 60 Projectiles 9 | . . . . . 9 Explosions . | . . . . . . Melee 51 | . . . . . 51 Knockbacks 3 | . . . . 1 2 Impact 1 | . . . . . 1 Kinetic 2 | . . . . 1 1 Secondary . | . . . . . . Self-Inflicted Damage . | . . . . . . Shots . | . . . . . . Rammed . | . . . . . . Targets Rammed . | . . . . . . Kicked . | . . . . . . Crushed . | . . . . . . Highest Temperature 319 | 27 72 9 145 152 319 Average Temperature 75 | 11 33 5 57 57 94 Received Heat Transfer 483 | . 24 . 27 27 405 Effects 3 | . . . . . 3 Interference 3 | . . . . . 3 Siege Activations . | . . . . . . Martial Activations . | . . . . . . Shielding Activations . | . . . . . . Robots Disrupted . | . . . . . . Combat Hostiles . | . . . . . . Robots Corrupted 2 | . . . . . 2 Combat Hostiles 1 | . . . . . 1 Parts Fried 3 | . . . 2 . 1 Impact Corruptions 2 | . . . . . 2 Robots Melted . | . . . . . . Combat Hostiles . | . . . . . . Parts Melted . | . . . . . . Heat Transferred 2109 | 185 333 296 222 222 851 Parts Sabotaged . | . . . . . . Parts Stolen . | . . . . . . Parts Stripped . | . . . . . . Power Chain Reactions . | . . . . . . Alert | -11 -10 -10 -9 -9 -9 ------- Run | Yrd Mat Min Mat Sto Gar Maximum Alert Level 4 | . . . . . 4 Low Security (%) 48 | 100 100 100 100 100 31 Level 1 16 | . . . . . 22 Level 2 16 | . . . . . 22 Level 3 14 | . . . . . 19 Level 4 2 | . . . . . 3 Level 5 . | . . . . . . High Security . | . . . . . . Max Security . | . . . . . . Peak Influence 1151 | 10 75 50 30 30 1151 Initial 25 | . . 25 11 . 2 Average 337 | 1 36 24 5 8 442 Influence Increases 1575 | 15 115 75 47 34 1289 Destroy 0b10 Robot/C 840 | . 80 60 20 20 660 Destroy 0b10 Robot/NC 45 | 15 . 5 15 . 10 Destroy Leader 92 | . 20 10 12 10 40 Allied During Kill 1 | . . . . . 1 Successful Hack 18 | . . . . 4 14 Disable Machine 45 | . . . . . 45 Anti-Garrison Action 450 | . . . . . 450 Destroy Structure 69 | . . . . . 69 Lose Combat Pursuer 15 | . 15 . . . . Influence Decreases 424 | 15 50 110 77 30 142 Entered New Map 61 | . . 40 19 . 2 Time Decay 213 | 15 50 60 58 30 . Lost Part 130 | . . 10 . . 120 Lost Ally 20 | . . . . . 20 Squads Dispatched 1 | . 1 . . . . Investigation . | . . . . . . Extermination . | . . . . . . Reinforcement 1 | . 1 . . . . Assault . | . . . . . . Garrison . | . . . . . . Intercept . | . . . . . . Searches Triggered . | . . . . . . Construction Impeded . | . . . . . . Haulers Reinforced . | . . . . . . Active Scanning Responses . | . . . . . . Cargo Convoy Interrupts . | . . . . . . Stealth | -11 -10 -10 -9 -9 -9 --------- Run | Yrd Mat Min Mat Sto Gar Distress Signals 2 | . 2 . . . . Communications Jammed . | . . . . . . Distress Signals . | . . . . . . Times Spotted 52 | . 8 3 1 2 38 Peak Tracking Total 4 | . 4 2 1 1 3 Tactical Retreats 1 | . 1 . . . . Traps | -11 -10 -10 -9 -9 -9 ------- Run | Yrd Mat Min Mat Sto Gar Traps Triggered 3 | . . . . . 3 Indirectly . | . . . . . . Trap Hack Attempts . | . . . . . . Triggered . | . . . . . . Disarmed . | . . . . . . Reprogrammed . | . . . . . . Reused . | . . . . . . Traps Extracted . | . . . . . . Installed . | . . . . . . Triggered . | . . . . . . Machines | -11 -10 -10 -9 -9 -9 ---------- Run | Yrd Mat Min Mat Sto Gar Machines Disabled 8 | . . . . . 8 Max in Single Turn 1 | . . . . . 1 Garrison Relay 4 | . . . . . 4 Machines Repaired . | . . . . . . Machines Dismantled . | . . . . . . Machines Sabotaged . | . . . . . . Overloaded Fab Kills . | . . . . . . Hacking | -11 -10 -10 -9 -9 -9 --------- Run | Yrd Mat Min Mat Sto Gar Machines Accessed 5 | . . . 1 1 3 Terminals 3 | . . . . . 3 Fabricators . | . . . . . . Repair Stations . | . . . . . . Recycling Units . | . . . . . . Scanalyzers 1 | . . . 1 . . Garrison Access 1 | . . . . 1 . Total Hacks 9 | . . . 1 4 4 Successful 4 | . . . 1 1 2 Failed 5 | . . . . 3 2 Catastrophic 1 | . . . . . 1 Database Lockouts . | . . . . . . Manual . | . . . . . . Terminals 4 | . . . . . 4 Fabricators . | . . . . . . Repair Stations . | . . . . . . Recycling Units . | . . . . . . Scanalyzers 1 | . . . 1 . . Garrison Access 4 | . . . . 4 . Terminal Hacks 2 | . . . . . 2 Open Door 1 | . . . . . 1 Emergency Access Points 1 | . . . . . 1 Fabricator Hacks . | . . . . . . Repair Station Hacks . | . . . . . . Recycling Unit Hacks . | . . . . . . Scanalyzer 1 | . . . 1 . . Retrieve Study 1 | . . . 1 . . Garrison Access Hacks 1 | . . . . 1 . Unlock Access 1 | . . . . 1 . Unauthorized Hacks . | . . . . . . Terminals . | . . . . . . Fabricators . | . . . . . . Repair Stations . | . . . . . . Recycling Units . | . . . . . . Scanalyzers . | . . . . . . Garrison Access . | . . . . . . Data Cores Recovered . | . . . . . . Used . | . . . . . . Hacking Detections 2 | . . . . 1 1 Full Trace Events 1 | . . . . . 1 Feedback Events . | . . . . . . Feedback Blocked . | . . . . . . Robot Schematics Acquired . | . . . . . . Robots Built . | . . . . . . Authchips . | . . . . . . Time . | . . . . . . Total Robot Build Rating . | . . . . . . Part Schematics Acquired . | . . . . . . Parts Built . | . . . . . . Authchips . | . . . . . . Time . | . . . . . . Total Part Build Rating . | . . . . . . Part Studies Acquired 1 | . . . 1 . . Parts Repaired . | . . . . . . Time . | . . . . . . Parts Recycled . | . . . . . . Recycled Matter . | . . . . . . Retrieved Matter . | . . . . . . Retrieved Components . | . . . . . . Parts Scanalyzed . | . . . . . . Part Schematics Acquired . | . . . . . . Parts Damaged . | . . . . . . Bothacking | -11 -10 -10 -9 -9 -9 ------------ Run | Yrd Mat Min Mat Sto Gar Used RIF Installer . | . . . . . . Robots Hacked . | . . . . . . Non-combat . | . . . . . . Combat . | . . . . . . Robot Hacks Applied . | . . . . . . Relay Couplers Released 16 | . . . . . 16 Machine Destruction 16 | . . . . . 16 Fabnet Peak Effective % . | . . . . . . Robots Rewired . | . . . . . . Allies Hacked . | . . . . . . Hacks Repelled . | . . . . . . Allies | -11 -10 -10 -9 -9 -9 -------- Run | Yrd Mat Min Mat Sto Gar Total Allies 1 | . . . . . 1 Largest Group 1 | . . . . . 1 Highest-Rated Group 20 | . . . . . 20 Highest-Rated Ally 20 | . . . . . 20 Total Orders . | . . . . . . Ally Attacks . | . . . . . . Total Damage . | . . . . . . Kills . | . . . . . . Allies Corrupted . | . . . . . . Allies Melted . | . . . . . . Intel | -11 -10 -10 -9 -9 -9 ------- Run | Yrd Mat Min Mat Sto Gar Active Infowar (turns) 341 | 44 124 132 41 . . Seismic 341 | 44 124 132 41 . . Robot Analysis Total . | . . . . . . Derelict Logs Recovered 1 | . . 1 . . . Drone Launches . | . . . . . . Drone Recoveries . | . . . . . . Exploration | -11 -10 -10 -9 -9 -9 ------------- Run | Yrd Mat Min Mat Sto Gar Turns Passed 2591 | 91 124 132 204 88 1952 Spaces Moved 1508 | 64 90 114 186 60 994 Core 4 | 3 . . . . 1 Treads 404 | 4 . . . . 400 Legs 327 | . . . . . 327 Wheels 773 | 57 90 114 186 60 266 Hover . | . . . . . . Flight . | . . . . . . Fastest Speed 50 | 50 95 95 80 85 115 Average Speed 127 | 92 95 95 84 101 145 Slowest Speed 600 | 160 95 95 95 115 600 Overloaded Moves . | . . . . . . Propulsion Burnouts . | . . . . . . Robots Hopped . | . . . . . . Potential Cave-ins . | . . . . . . Cave-ins Triggered . | . . . . . . Exploration Rate (%) 30 | 4 23 38 13 12 93 Regions Visited 5 Branch Regions 2 Pre-discovered Areas 1 | . . 1 . . . Known Exits Taken 1 | . . . . 1 . Unknown Exits Taken 4 | 1 1 1 1 . . Scrap Searched 1 | . . 1 . . . Spaces Dug 4 | . . . . . 4 Terrain Destroyed 5 | . . . . . 5 Melee 4 | . . . . . 4 Projectile 1 | . . . . . 1 AOE . | . . . . . . Terrain Rammed . | . . . . . . Walls Destroyed . | . . . . . . Machines Disabled . | . . . . . . Actions | -11 -10 -10 -9 -9 -9 --------- Run | Yrd Mat Min Mat Sto Gar Total 1798 | 80 106 123 212 69 1208 Wait 19 | . 4 . 2 . 13 Move 1504 | 63 89 113 185 60 994 Hop . | . . . . . . Pick Up 29 | 4 2 2 4 1 16 Fast Attach 13 | 7 . . 1 . 5 Attach 13 | . . 1 2 . 10 Detach 2 | . . . 1 . 1 Swap 10 | . . . 4 . 6 Drop 10 | . . . 4 . 6 Fire 125 | 6 11 7 9 8 84 Melee 65 | . . . . . 65 Ram . | . . . . . . Kick . | . . . . . . Crush . | . . . . . . Escape Stasis 8 | . . . . . 8 Rewire . | . . . . . . Trap . | . . . . . . Miscellaneous . | . . . . . . Route ------- -11/Scrapyard -10/Materials -10/Mines -9/Materials -9/Storage -9/Garrison (discovered 3 exits: [*Rec x3]) History --------- Turn | Location | Event 8 | -11/Scrapyard | Discovered new exit (range 16) 92 | -11/Scrapyard | Entered Materials 197 | -10/Materials | Discovered new exit (range 8) 216 | -10/Materials | Entered Mines 242 | -10/Mines | Found a Scrap Suit stashed away for nefarious purposes 244 | -10/Mines | Found Scrap Suit 302 | -10/Mines | Build established: Mutant 341 | -10/Mines | Discovered new exit (range 6) 348 | -10/Mines | Entered Materials 348 | -9/Materials | Evolved 2 slots: Propulsion x1, Weapon x1 372 | -9/Materials | Discovered new exit (range 15) 552 | -9/Materials | Entered Storage 640 | -9/Storage | Identified exit to Garrison 640 | -9/Storage | Entered Garrison 774 | -9/Garrison | Triggered checkpoint 829 | -9/Garrison | Discovered new exit (range 12) 856 | -9/Garrison | Triggered checkpoint 938 | -9/Garrison | Triggered checkpoint 945 | -9/Garrison | Garrison Relay disabled 1148 | -9/Garrison | Core integrity fell below 50% 1182 | -9/Garrison | Lost 7 parts (1p4n2w) 1346 | -9/Garrison | Rescued a captive Derelict 1470 | -9/Garrison | Triggered checkpoint 1669 | -9/Garrison | Build established: Scavenger-Mutant 1674 | -9/Garrison | Triggered checkpoint 1726 | -9/Garrison | Garrison Relay disabled 1900 | -9/Garrison | Discovered new exit (range 14) 2046 | -9/Garrison | Triggered checkpoint 2059 | -9/Garrison | Core integrity fell below 20% 2130 | -9/Garrison | Triggered checkpoint 2141 | -9/Garrison | Garrison Relay disabled 2273 | -9/Garrison | Triggered checkpoint 2350 | -9/Garrison | Discovered new exit (range 14) 2446 | -9/Garrison | Triggered checkpoint 2483 | -9/Garrison | Garrison Relay disabled 2592 | -9/Garrison | Destroyed by S-10 Pest with Light Assault Rifle Last Messages --------------- 02483_ Garrison Relay disabled. 02483_ Relay Coupler [NC] tumbles out of relay unit. 02483_ Relay Coupler [Sentry] tumbles out of relay unit. 02502_ HBVZ%MEIX 3COFL#C/&FBVMR9LSME,T6E728 02518_ System corrupted: Component data lost. 02532_ Connecting with Garrison Terminal... 02532_ ALERT: Suspicious activity at Terminal G002. Transmitting hostile system tracking data. 02557_ System corrupted: Substantial component data lost. 02580_ JVXSJFD0I 02591_ Slug penetrates Wall. 02591_ Slug penetrates S-10 Pest. Map ----- +----------------------------------------------------+ | #?????????????????????????????????????????????? | | ###???????????????????????????????????????####### | | #?????????????????????????????????????????#!!!!!# | | #######################???????????????????#! !% | | #???????????????????#! * | | = #???????????????????#!!! !# | | +######## < ######### #????????+??????????###!### | | #??????# #???????# #???????? #??????????# | | #??????#####???????# #???????? ??????????# ### | | #??????????????????# #???????? ??????????# #?? | | #??????????????????# #???????? ??????????# #?? | | #??????????????????# #???????? #??????????# #?? | | #??????????????????# #???????# #??????#####"### | | [#??????????????????# #???????" #??????# | | [#??????????????????# #???????" #??????# | | =#??????????????????# #???????" #??????# | | #??????????????????# #???????# #??????# #"### | | #??????????????????# #???????# #??????# # #?? | | #??????????????????# #???????# #??????# # #?? | | #??????????????????# #???????# #??????# + #?? | | #??????????????????# #???????# #??????# # #?? | | #??????????????????# #???????# ######## # #?? | | #??????????????????#* #???????# ## ## + #?? | | #??????????????????#/ #??????## ## ## # #?? | | #################### ######## # #?? | | % ;[*=!@[ [s% + #?? | | [ +![% !ss # #?? | | ############################### ## ## # #?? | | ????????????????????????????### ## ## =#"#?? | | ????????????????????????????# =%[#?? | | ????????????????????????????# =%%#?? | | ????????????????????????????#= %!%==#?? | | ????????????????????????????#%= / [ =#?? | | ????????????????????????????###* ## ## ###?? | | ?????????????????????##########^^^## ## =#???? | | ?????????????????????# "==* ##### | | ?????????????????????# + % " # | | ?????????????????????# ####### ### # | | ?###?????????????????# #?????# ## ## #?# # | | ?#"###???????????????# #?????# #? ## #?# | | ## #???????????????# ####### #??##### #?# # | | # ##???????????????# + #??????# T## # | | # #???????????????# ####### #??????# ### # | | # #???????????????# #?????# #??????# #?# # | | ## ###???????????????# #?????# #??????# ###+# | | ## ###################+"####### #??????# | | #??????# | | #??????# ^ | | #??????#######+" | | < ########### ####### #######+# #????????????# | +----------------------------------------------------+ Best States ------------- Heat Dissipation 28 Energy Generation 14 Energy Capacity 265 Matter Stores 300 Matter Capacity 300 Sight Range 16 Terrain Scan Density 10 Evasion (%) 55 Targeting Accuracy 5 Recoil Reduction 3 Item Schematics ----------------- None Robot Schematics ------------------ None Fabricated ------------ Nothing Repaired ---------- Nothing Studied --------- Wheel | -9/Materials | Hacked Alien Tech Used ----------------- None Achievements -------------- None Challenges ------------ None Game ------ Seed BeamCommExoskeleton Manual? 0 Play Time 00:17:38 Cumulative 165.6 hours Start 2026.08.19 @ 15:41:57 End 2026.08.19 @ 15:55:23 Sessions 1 Manual Loads 0 Difficulty Rogue Special Mode None Game No. 330 Rogue 330 Adventurer 0 Explorer 0 Win Type - Total 2 Types 2/0/0/0/0/0/0/0/0/0 Lore% 57 Gallery% 58 Achievement% 46 Wizard Run 0 Options --------- Layout 2 ASCII 0 Keyboard 1 Movement Arrows Keybinds 0 Fullscreen 1 Font 24/Smallcaps Map View 50x44 Zoom Use 0% Tactical HUD 1 Map Filters NONE Filters NONE Steam 1 RUN: 0d53277c-644b-4a20-ae5d-24d0e8133cfd